[Event "Doeberl Cup 2022"]
[Site "Canberra"]
[Date "2022.04.17"]
[Round "7.6"]
[White "Leaver, Kyle"]
[Black "Stojic, Dusan"]
[Result "1/2-1/2"]
[ECO "E11"]
[WhiteElo "2140"]
[BlackElo "2240"]
[Annotator "TA"]
[PlyCount "169"]
[EventDate "2022.04.14"]
[EventType "swiss"]
[EventCountry "AUS"]
[SourceTitle "playchess.com"]
[Source "ChessBase"]
[SourceQuality "1"]
[TimeControl "5400+30"]

{[%evp 9,169,0,0,0,0,0,0,0,0,-7,0,0,0,0,0,0,0,0,0,0,0,0,0,0,0,0,0,0,0,0,0,0,0,0,0,-2,-2,-10,-2,-2,-2,-2,-2,-2,-2,-2,-2,-2,0,-2,-2,-2,-2,-2,0,-2,-2,-2,-2,-18,0,-18,0,-20,-18,-18,-2,-18,0,0,0,-2,0,0,0,-2,-2,-17,0,-4,0,-4,-4,-8,0,-8,-8,-14,0,0,0,0,0,0,0,-4,0,0,0,0,0,0,0,-4,0,-4,0,0,30,37,43,28,53,0,35,0,39,52,48,39,51,38,218,68,79,81,70,62,50,66,66,13,13,13,13,0,13,8,66,8,43,0,0,0,0,0,0,0,0,0,0,0,0,0,0,0,0,0,0,0,0,0]} 1. d4 {[%emt 0:12:01]} Nf6 {[%emt 0:00:10]} 2. c4 {[%emt 0:01:07]} e6 {[%emt 0:00:23]} 3. Nc3 {[%emt 0:00:58]} Bb4 {[%emt 0:00:07]} 4. Bd2 {[%emt 0:02:16]} O-O {[%emt 1:31:50]} 5. Nf3 {[%emt 1:16:38]} c5 {[%emt 0:00:30]} 6. a3 {[%emt 0:00:30] E11: Bogo-Indian.} Bxc3 {[%emt 0:00:00]} 7. Bxc3 {[%emt 0:00:00]} Ne4 {[%emt 0:01:00]} 8. Rc1 {[%emt 0:00:00]} d6 {[%emt 0:00:00]} 9. e3 {[%emt 0:00:00]} Nc6 {[%emt 0:00:00]} 10. Be2 {[%emt 0:00:00]} Nxc3 {[%emt 0:00:00]} 11. Rxc3 {[%emt 0:02:30]} e5 {[%emt 0:02:00] [#]} 12. dxe5 $146 {[%emt 0:00:00]} ({Predecessor:} 12. O-O Bg4 13. dxc5 dxc5 14. h3 Bf5 15. Nd2 Qe7 16. Bg4 Bg6 17. Bh5 Bf5 18. Bg4 {½-½ (29) Ringoir,T (2491)-Balakrishnan,P (2498) Charlotte 2020}) 12... dxe5 {[%emt 0:00:00]} 13. Qxd8 {[%emt 0:00:00]} Rxd8 {[%emt 0:00:00]} 14. Nd2 {[%emt 0:00:00]} f5 {[%emt 0:00:00]} 15. Rg1 {[%emt 0:00:00]} e4 {[%emt 0:00:00]} 16. f4 {[%emt 0:00:00]} Kf7 {[%emt 0:00:00][%cal Bg8f7,Bf7f8,Bf8e7,Be7f6][%mdl 32]} 17. g4 {[%emt 0:00:00]} g6 {[%emt 0:03:00]} 18. gxf5 {[%emt 0:00:00]} gxf5 {[%emt 0:00:00]} 19. Rg5 {[%emt 0:00:00]} Rd6 {[%emt 0:00:00]} 20. Nf1 {[%emt 0:00:00]} h6 {[%emt 0:00:00]} 21. Bh5+ {[%emt 0:00:00]} Kf8 {[%emt 0:00:00]} 22. Rg2 {[%emt 0:00:00]} Be6 {[%emt 0:00:00]} 23. Rd2 {[%emt 0:00:00]} Rxd2 {[%emt 0:00:00]} 24. Nxd2 {[%emt 0:00:00]} Ke7 {[%emt 0:00:00]} 25. Rc1 {[%emt 0:00:00]} Rg8 {[%emt 0:00:00]} 26. Kf2 {[%emt 0:00:00] Against Rg2+} Rd8 {[%emt 0:00:00]} 27. Rc2 {[%emt 0:00:15]} b6 {[%emt 0:00:00]} 28. Be2 {[%emt 0:01:13]} Kf6 {[%emt 0:00:00]} 29. Nf1 {[%emt 0:01:31]} Na5 {[%emt 0:00:00]} 30. Ke1 {[%emt 0:00:46]} Ke7 {[%emt 0:00:00]} 31. Nd2 {[%emt 0:00:32]} Nc6 {[%emt 0:00:00]} 32. Rc1 {[%emt 0:00:22]} Rg8 {[%emt 0:00:00]} 33. Kf2 {[%emt 0:01:25] Prevents Rg2+.} Bf7 {[%emt 0:00:00]} 34. Nf1 {[%emt 0:01:07]} Rd8 {[%emt 0:00:00]} 35. Ke1 {[%emt 0:00:16]} Be6 {[%emt 0:00:00]} 36. Rc3 {[%emt 0:00:26]} Kf6 {[%emt 0:00:00]} 37. Rc1 {[%emt 0:00:22]} Rc8 {[%emt 0:00:00]} 38. Rc3 {[%emt 0:00:22]} Ne7 {[%emt 0:00:00]} 39. Rc2 {[%emt 0:00:52]} Rg8 {[%emt 0:00:00]} 40. Kf2 {[%emt 0:00:11]} Nc8 {[%emt 0:00:00]} 41. Rd2 {[%emt 0:00:44]} Ke7 {[%emt 0:00:00]} 42. Rc2 {[%emt 0:00:19]} Nd6 {[%emt 0:00:00]} 43. Nd2 {[%emt 0:00:24]} a6 {[%emt 0:00:00]} 44. Rc1 {[%emt 0:00:20]} Bf7 {[%emt 0:00:00]} 45. Nb1 {[%emt 0:00:56]} Rc8 {[%emt 0:00:00]} 46. Nd2 {[%emt 0:00:24]} b5 {[%emt 0:00:00]} 47. cxb5 axb5 48. Rc2 {[%emt 0:02:59]} c4 {[%emt 0:00:00]} 49. Nb1 {[%emt 0:00:14]} Rb8 {[%emt 0:00:00]} 50. Nc3 {[%emt 0:00:47]} b4 {[%emt 0:00:00]} 51. axb4 Rxb4 52. Nb1 {[%emt 0:00:42]} Be8 {[%emt 0:00:51]} 53. Na3 {[%emt 0:00:31]} Bf7 {[%emt 0:01:26]} 54. Ke1 {[%emt 0:00:50]} Rb3 {[%emt 0:01:52]} 55. Kf2 $1 {[%emt 0:00:48]} Kd7 {[%emt 0:07:38]} 56. Nb1 {[%emt 0:00:43]} Rb4 {[%emt 0:00:47]} 57. Nd2 {[%emt 0:00:09]} Bd5 {[%emt 0:00:31]} 58. Ke1 {[%emt 0:00:15]} Kc6 {[%emt 0:01:56]} 59. b3 {[%emt 0:00:45]} Kc5 {[%emt 0:00:29]} 60. Kf2 Kc6 {[%emt 0:00:34]} 61. Ke1 {[%emt 0:01:00]} (61. Nxc4 Nxc4 62. bxc4 (62. Bxc4 Bxc4 63. bxc4 Kc5 $11) 62... Be6 $11) 61... Kc5 {[%emt 0:00:26]} 62. Kf2 {[%emt 0:00:30]} Bf7 {[%emt 0:00:30]} 63. Kg3 {[%emt 0:00:41]} Kb6 {[%emt 0:06:00]} 64. bxc4 {[%emt 0:01:20] [#] Strongly threatening c5+.} Kc5 {[%emt 0:00:30][%cal Rf7c4]} 65. Kh4 {[%emt 0:01:59]} Nxc4 $2 {[%emt 0:00:00]} (65... Rb6 $14) 66. Bxc4 {[%emt 0:00:00]} ({White should play} 66. Rc1 $18) 66... Bxc4 $14 {[%emt 0:00:00][%mdl 4096] Endgame KRB-KRN} 67. Kh5 {[%emt 0:01:00] Black must now prevent Kg6.} ({But not} 67. Nxc4 Rxc4 68. Rg2 Rc1 $11) 67... Kd5 {[%emt 0:01:30]} 68. Nxc4 {[%emt 0:00:00]} ({Much worse is} 68. Rxc4 Rxc4 69. Nxc4 Kxc4 70. Kxh6 Kd3 $11) 68... Rxc4 {[%emt 0:00:00] KR-KR} 69. Rd2+ {[%emt 0:00:00]} Ke6 {[%emt 0:00:00]} 70. Kxh6 {[%emt 0:00:00]} (70. Rg2 $14) 70... Rc3 $11 {[%emt 0:00:00]} 71. Re2 {[%emt 0:00:03]} Kf6 $1 {[%emt 0:00:00]} 72. Kh5 {[%emt 0:00:10]} Rd3 {[%emt 0:00:00]} (72... Rc8 $5 73. Kh4 Rc3 $11) 73. Kh4 {[%emt 0:00:09]} Rd1 {[%emt 0:00:00]} ({Better is} 73... Rc3 $11) 74. Kg3 {[%emt 0:00:33]} (74. Rb2 $14) 74... Rf1 {[%emt 0:00:00]} 75. Kg2 {[%emt 0:01:00]} Rf3 {[%emt 0:04:00] The position is equal.} 76. Kg1 {[%emt 0:00:23]} Ke6 {[%emt 0:00:00]} 77. h4 {[%emt 0:01:31][%cal Bh2h4,Bh4h5,Bh5h6,Bh6h7][%mdl 32]} Rh3 {[%emt 0:00:00]} 78. Rh2 {[%emt 0:00:08]} Rxe3 {[%emt 0:00:00]} 79. h5 {[%emt 0:00:29]} Ra3 {[%emt 0:00:00]} 80. Rh4 {[%emt 0:01:15]} (80. h6 Ra1+ 81. Kg2 Ra2+ 82. Kh3 Rxh2+ 83. Kxh2 Kf6 84. Kh1 Kg6 85. h7 Kxh7 86. Kg2 Kg6 87. Kf2 Kf6 88. Ke3 Kf7 89. Kf2 Ke6 90. Ke2 Kd5 91. Ke3 Kc5 92. Kf2 Kd4 93. Ke2 e3 94. Ke1 Ke4 95. Ke2 Kxf4 96. Ke1 Ke4 97. Ke2 f4 98. Ke1 f3 99. Kf1 Kd3 100. Ke1 f2+ 101. Kf1 Kd2 102. Kg2 e2 103. Kh3 f1=Q+ 104. Kg3 e1=Q+ 105. Kg4 Qe4+ 106. Kh5 Qff5+ 107. Kh6 Qg6#) 80... Kf6 {[%emt 0:00:11]} 81. h6 {[%emt 0:00:22] [#] Intending h7 and mate.} Ra8 {[%emt 0:00:12]} 82. h7 {[%emt 0:00:45]} Rh8 {[%emt 0:00:11]} 83. Rh5 {[%emt 0:00:14]} Kg6 {[%emt 0:00:22][%csl LRh5,LRh7]} 84. Rg5+ {[%emt 0:00:07]} Kf6 {[%emt 0:00:15]} 85. Rh5 {[%emt 0:00:06] Weighted Error Value: White=0.02 (flawless) /Black=0.04 (flawless)} 1/2-1/2

[Event "Doeberl Cup 2022"]
[Site "Canberra"]
[Date "2022.04.17"]
[Round "7.7"]
[White "Bjelobrk, Igor"]
[Black "Gong, Noah"]
[Result "1-0"]
[ECO "A30"]
[WhiteElo "2403"]
[BlackElo "1993"]
[Annotator "TA"]
[PlyCount "115"]
[EventDate "2022.04.14"]
[EventType "swiss"]
[EventCountry "AUS"]
[SourceTitle "playchess.com"]
[Source "ChessBase"]
[SourceQuality "1"]
[TimeControl "5400+30"]

{[%evp 21,115,40,60,50,52,48,103,97,139,132,142,108,181,183,227,218,218,186,200,185,193,193,195,194,189,153,153,153,156,155,215,207,189,180,318,302,312,273,293,212,250,219,304,303,302,268,285,280,369,248,506,240,298,243,378,350,316,345,305,276,448,455,427,263,295,264,418,282,280,270,268,239,512,497,481,461,481,478,735,719,791,752,833,821,1088,896,882,877,29988,29989,29990,29991,29991,29992,29992,29993]} 1. Nf3 {[%emt 1:31:00]} Nf6 {[%emt 1:31:00]} 2. c4 {[%emt 0:00:30]} e6 {[%emt 0:00:30]} 3. g3 {[%emt 0:00:30]} b6 {[%emt 0:00:30]} 4. Bg2 {[%emt 0:00:30]} Bb7 {[%emt 0:00:30]} 5. O-O {[%emt 0:00:30]} Be7 {[%emt 0:00:30]} 6. Nc3 {[%emt 0:00:30]} O-O {[%emt 0:00:30]} 7. Re1 {[%emt 0:00:30]} c5 {[%emt 0:00:30]} 8. e4 {[%emt 0:00:30]} d6 {[%emt 0:00:30]} 9. d4 {[%emt 0:00:30]} cxd4 {[%emt 0:00:30]} 10. Nxd4 {[%emt 0:00:30]} Qc8 {[%emt 0:00:30]} 11. Be3 {[%emt 0:00:30]} a6 {[%emt 0:00:30]} 12. Rc1 {[%emt 0:00:30] A30: Symmetrical English: Double Fianchetto and Hedgehog.} Nbd7 {[%emt 0:00:30]} 13. f4 {[%emt 0:00:30][%cal Bf2f4,Bf4f5,Bf5e6][%mdl 32]} Rd8 {[%emt 0:00:30]} (13... Re8 $14) 14. g4 $16 {[%emt 0:00:30][%cal Bg3g4,Bg4g5][%mdl 32] White is better.} Ne8 {[%emt 0:00:30]} 15. g5 {[%emt 0:00:30]} Bf8 {[%emt 0:00:30]} 16. b3 {[%emt 0:00:30] [#]} Qc7 $146 {[%emt 0:00:30]} (16... g6 $16) ({Predecessor:} 16... g6 17. h4 Ng7 18. Qc2 Nc5 19. b4 Nd7 20. Qb3 Qc7 21. Nd1 Nh5 22. Nf2 e5 {½-½ (72) Ott,F (2119)-Ruff,M (2053) Hannover 2013}) 17. f5 $18 {[%emt 0:00:30]} e5 {[%emt 0:00:30] [#]} 18. Nd5 $1 {[%emt 0:00:30]} Qb8 {[%emt 0:00:30]} 19. Ne6 {[%emt 0:00:30]} fxe6 {[%emt 0:00:30]} 20. fxe6 {[%emt 0:00:30]} Bxd5 {[%emt 0:00:30]} 21. cxd5 {[%emt 0:00:30]} (21. exd7 $6 Be6 22. dxe8=N (22. dxe8=R Rxe8 23. Rc2 Be7 $14) 22... Rxe8 $11) 21... Ndf6 {[%emt 0:00:30] Prevents Qh5.} 22. gxf6 {[%emt 0:00:30]} Nxf6 {[%emt 0:00:30]} 23. Rc6 {[%emt 0:00:30]} b5 {[%emt 0:00:30]} 24. Re2 {[%emt 0:00:30][%cal Be1e2,Be2c2,Bc2c6][%mdl 32]} Rc8 {[%emt 0:00:30]} 25. Rec2 $36 {[%emt 0:00:30][%mdl 2048] White is on the roll. &Bianco is much more active.} Qb7 {[%emt 0:00:30]} (25... Rxc6 $16 {might work better.} 26. Rxc6 (26. dxc6 Qc7 $16) 26... Be7) 26. Qc1 {[%emt 0:00:30][%cal Rc6c8]} Rxc6 {[%emt 0:00:30]} 27. Rxc6 {[%emt 0:00:30] [#] Black must now prevent Rc7.} ({But not} 27. dxc6 Qc7) 27... Ne8 {[%emt 0:00:30] Inhibits Rc7.} (27... Ng4 $142 28. Rc7 Qb8) 28. Bf3 {[%emt 0:00:30]} Qe7 {[%emt 0:00:30]} 29. Kg2 {[%emt 0:00:30]} h6 {[%emt 0:00:30]} 30. Kg3 {[%emt 0:00:30]} a5 {[%emt 0:00:30]} 31. a3 {[%emt 0:00:30]} a4 {[%emt 0:00:30]} 32. b4 {[%emt 0:00:30]} ({Don't take} 32. bxa4 $6 Rxa4 33. Kg2 b4 $18) 32... Rb8 {[%emt 0:00:30]} 33. Kf2 {[%emt 0:00:30][%cal Bg3f2,Bf2g2,Bg2f1][%mdl 32]} Qh4+ {[%emt 0:00:30]} 34. Kg2 {[%emt 0:00:30] Threatens to win with Rc8.} Qe7 {[%emt 0:00:30]} 35. Kf1 {[%emt 0:00:30]} Qh4 $2 {[%emt 0:00:30]} (35... Qd8 {was necessary.} 36. Qc3 Nf6) 36. Qc2 {[%emt 0:00:30]} (36. Rc8 $142 Rxc8 37. Qxc8) 36... Qf6 {[%emt 0:00:30]} 37. Qf2 {[%emt 0:00:30]} Qe7 {[%emt 0:00:30]} (37... Be7 $142 38. Ke2 Qg6) 38. Bh5 {[%emt 0:00:30]} Nf6 {[%emt 0:00:30]} 39. Bf7+ {[%emt 0:00:30]} Kh8 {[%emt 0:00:30]} 40. Qf5 {[%emt 0:00:30]} Nh7 $2 {[%emt 0:00:30]} (40... Qd8 41. Qf3 Be7) 41. Bg6 {[%emt 0:00:30]} Nf6 {[%emt 0:00:30]} 42. Ke2 {[%emt 0:00:30] Hoping for Bb6.} Ra8 43. Kd2 Rb8 (43... Ng8 {keeps fighting.} 44. Qf2 Qd8) 44. Qf3 Qd8 {[%emt 0:01:30]} 45. Bf5 {[%emt 0:01:30]} Be7 {[%emt 0:00:30]} 46. Qe2 {[%emt 0:00:30]} Ng8 $2 {[%emt 0:00:30]} (46... Qe8 47. Qg2 g5) 47. Qh5 {[%emt 0:00:30]} Nf6 {[%emt 0:00:30]} 48. Qf7 {[%emt 0:00:30]} Ra8 {[%emt 0:00:30]} 49. Bb6 {[%emt 0:00:30]} Qe8 {[%emt 0:00:30]} (49... Qf8 $142 50. Qxf8+ Rxf8) 50. Qxe8+ {[%emt 0:00:30]} Nxe8 {[%emt 0:00:30]} 51. Bg6 {[%emt 0:00:30]} Bg5+ {[%emt 0:00:30]} 52. Ke2 {[%emt 0:00:30]} Bf4 {[%emt 0:00:30]} 53. Bxe8 {[%emt 0:00:30]} Rxe8 {[%emt 0:00:30]} 54. Rxd6 {[%emt 0:00:30] White threatens Rd8 and mate.} Bc1 {[%emt 0:00:30]} 55. Rd8 {[%emt 0:00:30] White mates.} Rxd8 {[%emt 0:00:30]} 56. Bxd8 {[%emt 0:00:30]} Kg8 {[%emt 0:00:30]} 57. d6 {[%emt 0:00:30][%cal Bd5d6,Bd6d7][%mdl 32]} Kf8 {[%emt 0:00:30]} 58. d7 {[%emt 0:00:30] Weighted Error Value: White=0.28 (precise) /Black=0.52} 1-0

[Event "Doeberl Cup 2022"]
[Site "Canberra"]
[Date "2022.04.17"]
[Round "8.1"]
[White "Melkumyan, Hrant"]
[Black "Sardana, Rishi"]
[Result "1-0"]
[ECO "D35"]
[WhiteElo "2649"]
[BlackElo "2461"]
[Annotator "TA"]
[PlyCount "137"]
[EventDate "2022.04.14"]
[EventType "swiss"]
[EventCountry "AUS"]
[SourceTitle "playchess.com"]
[Source "ChessBase"]
[SourceQuality "1"]
[TimeControl "5400+30"]

{[%evp 20,137,30,26,25,36,35,26,27,14,37,36,22,23,56,39,32,14,26,19,38,10,43,39,261,263,255,256,231,249,235,231,272,268,283,302,282,289,270,158,174,171,225,170,250,164,243,97,412,229,426,303,681,231,655,410,984,168,1013,988,898,433,415,165,533,482,441,361,1462,412,514,361,277,493,2158,400,658,654,654,584,700,700,700,700,700,689,700,700,689,553,1108,983,1046,671,682,682,710,682,682,682,664,638,638,638,638,638,638,603,541,524,472,446,2307,2429,1677,1493,5401,5206,2071,1512]} 1. d4 {[%emt 0:06:03]} d5 {[%emt 0:00:17]} 2. c4 {[%emt 0:00:18]} e6 {[%emt 0:00:04]} 3. Nf3 {[%emt 0:00:35]} Nf6 {[%emt 0:00:06]} 4. Nc3 {[%emt 0:00:42]} Nbd7 {[%emt 0:00:14]} 5. Qc2 {[%emt 0:01:57]} Be7 {[%emt 0:01:43]} 6. cxd5 {[%emt 0:02:19]} exd5 {[%emt 0:00:06]} 7. Bf4 {[%emt 0:00:09]} c6 {[%emt 0:01:20]} 8. h3 {[%emt 0:00:37]} O-O {[%emt 0:03:11]} 9. e3 {[%emt 0:00:07]} Re8 {[%emt 0:00:43]} 10. Bd3 {[%emt 0:00:11]} g6 {[%emt 0:00:37]} 11. O-O {[%emt 0:03:27]} Nf8 {[%emt 0:02:08]} 12. Rab1 {[%emt 0:06:10]} a5 {[%emt 0:01:13]} 13. a3 {[%emt 0:00:08]} Ne6 {[%emt 0:05:37]} 14. Be5 {[%emt 0:02:54]} Bd6 {[%emt 0:03:04]} 15. b4 {[%emt 0:01:18]} axb4 {[%emt 0:19:59]} 16. axb4 {[%emt 0:00:19]} b5 {[%emt 0:21:44]} 17. Bxd6 {[%emt 0:14:31]} Qxd6 {[%emt 0:00:05]} 18. Ne5 {[%emt 0:00:12]} Nd7 {[%emt 0:05:14]} 19. f4 {[%emt 0:00:58]} Ng7 {[%emt 0:01:54]} 20. Nd1 {[%emt 0:11:52]} (20. Ne2 $5 {[%cal Re5c6]}) 20... Ra6 {[%emt 0:11:43]} (20... Nb8 $5 {[%cal Rf7f6]}) 21. Nf2 {[%emt 0:01:02]} f6 $2 {[%emt 0:00:58]} (21... Nb6 $14) 22. Nfg4 $1 $18 {[%emt 0:03:57]} f5 {[%emt 0:12:21]} (22... fxe5 $2 23. Nh6+ Kh8 24. Nf7+ Kg8 25. Nxd6 $18) 23. Nh6+ {[%emt 0:00:23]} Kf8 {[%emt 0:00:04]} 24. Nhf7 {[%emt 0:00:47]} Qe7 {[%emt 0:00:40] [#]} 25. Ra1 $1 {[%emt 0:05:36]} Nxe5 {[%emt 0:01:17]} 26. Nxe5 {[%emt 0:00:10]} Rxa1 {[%emt 0:00:52]} 27. Rxa1 {[%emt 0:00:07]} Bb7 {[%emt 0:00:03]} 28. Ra7 {[%emt 0:06:38]} Ra8 {[%emt 0:00:17]} 29. Qa2 {[%emt 0:02:39]} (29. Rxa8+ $18 Bxa8 30. Kf2) 29... Rxa7 {[%emt 0:00:04]} 30. Qxa7 {[%emt 0:00:09]} Ne8 {[%emt 0:00:05]} (30... Qc7 $142 31. g3 Ne8) 31. Kf2 {[%emt 0:06:58]} Nd6 {[%emt 0:00:23]} (31... Qc7 $142 32. g4 fxg4) 32. Ke2 {[%emt 0:01:00]} Nc4 {[%emt 0:02:27]} (32... Qc7 {is a better defense.} 33. g4 Kg8 34. gxf5 gxf5) 33. Bxc4 {[%emt 0:01:23]} (33. Qb8+ $18 {has better winning chances.} Kg7 34. g4) 33... dxc4 $4 {[%emt 0:00:37][%mdl 8192]} (33... bxc4 $16 34. g4 Qc7) 34. g4 {[%emt 0:01:47]} (34. Qb8+ $142 Kg7 35. g4) 34... Kg7 $2 {[%emt 0:01:58]} (34... Qc7 {keeps fighting.} 35. Kd2 Ke8) 35. g5 {[%emt 0:01:17]} Kf8 $2 {[%emt 0:00:38]} (35... Qc7 36. Qc5 Qd8 37. Nxc6 Qe8) 36. Kd1 $2 {[%emt 0:01:07]} (36. Qb8+ Kg7 37. h4) 36... Kg7 $2 {[%emt 0:00:41]} (36... Qc7 37. Qc5+ Qe7) 37. Kc2 {[%emt 0:00:42]} Kf8 {[%emt 0:00:17]} (37... Qc7 $142 38. Qc5 Qd8) 38. Kc3 $2 {[%emt 0:00:10]} (38. Qb8+ Kg7 39. Kd1) 38... Kg7 $2 {[%emt 0:00:41]} (38... Qc7 39. Qc5+ Qe7) 39. Qb8 $18 {[%emt 0:02:23]} Ba6 {[%emt 0:00:06]} 40. Qb6 {[%emt 0:00:49]} (40. h4 $142 {[%cal Oh4h5] Black must now prevent h5!} Bb7 41. e4) 40... Bb7 $18 {[%emt 0:00:06]} 41. h4 $2 {[%emt 0:00:08]} (41. d5 cxd5 42. Qxb5) 41... Ba8 $2 {[%emt 0:00:34]} (41... Kf8 42. Qa7 Qc7 43. Qc5+ Qe7) 42. Qa5 {[%emt 0:02:15]} Bb7 {[%emt 0:00:09]} 43. Qa7 {[%emt 0:03:09]} Kf8 $2 {[%emt 0:00:34]} (43... Qc7 44. Qc5 Qd8 45. Nxc6 Qe8) 44. Qb6 {[%emt 0:00:05]} (44. Qb8+ $142 Kg7 45. e4) 44... Kg7 {[%emt 0:00:39]} 45. d5 {[%emt 0:00:17]} cxd5 {[%emt 0:00:12]} 46. Qxb5 {[%emt 0:00:10]} Qc7 {[%emt 0:02:21]} (46... Kf8 $142 47. Qb6 Ke8) 47. Qa5 {[%emt 0:02:56]} (47. Qe8 $142 {h5 would kill now.} Bc8 48. Kc2) 47... Qxa5 $18 {[%emt 0:01:22]} 48. bxa5 {[%emt 0:00:04]} Kf8 {[%emt 0:00:11]} 49. Kb4 {[%emt 0:01:13]} Ke7 {[%emt 0:00:08]} 50. Kc5 {[%emt 0:05:11]} c3 {[%emt 0:02:53]} 51. Nd3 {[%emt 0:00:05]} c2 {[%emt 0:00:33]} 52. Kd4 {[%emt 0:00:47]} Ba6 {[%emt 0:00:38]} 53. Nc1 {[%emt 0:00:02]} Kd6 {[%emt 0:00:33]} 54. Kc3 {[%emt 0:00:08]} Bb5 {[%emt 0:00:31]} 55. Nb3 {[%emt 0:00:39]} d4+ {[%emt 0:00:28]} 56. Kxd4 {[%emt 0:01:13]} Ba4 {[%emt 0:00:12]} 57. Nc1 {[%emt 0:00:06]} Kc6 {[%emt 0:00:04]} 58. Kc4 {[%emt 0:00:25]} Kb7 {[%emt 0:00:17] [#]} 59. Kb4 $1 {[%emt 0:00:25]} Bc6 {[%emt 0:00:06]} 60. Kc3 {[%emt 0:02:51]} Be4 {[%emt 0:00:26]} 61. Kd2 {[%emt 0:01:10]} Ka6 {[%emt 0:00:18]} 62. Nb3 {[%emt 0:00:36]} Kb5 {[%emt 0:00:08]} 63. a6 {[%emt 0:00:29]} Kb6 {[%emt 0:00:33]} 64. a7 {[%emt 0:00:10]} Kb5 {[%emt 0:02:07]} 65. Nc1 {[%emt 0:01:08]} Kc4 {[%emt 0:00:42]} (65... Kb6 $142 66. Nd3 Kxa7) 66. Nd3 $18 {[%emt 0:00:21]} Ba8 {[%emt 0:00:42]} 67. Kxc2 {[%emt 0:00:10]} Kd5 {[%emt 0:00:12]} 68. Ne5 {[%emt 0:00:16]} Kd6 {[%emt 0:00:38]} 69. Kc3 {[%emt 0:00:08]} 1-0